bitfinex/quotes_ETHUSD_20230403
["timestamp","ask_amount","ask_price","bid_price","bid_amount"]
[1680535127726,0.11000001,1794.7,1794.6,25.25872237]
[1680535127940,0.11000001,1794.7,1794.6,24.74836754]
[1680535128406,0.11000001,1794.7,1794.6,24.45651368]
[1680535129208,0.11000001,1794.7,1794.6,25.33092033]
[1680535129426,0.11000001,1794.7,1794.6,24.45651368]
[1680535129745,0.11000001,1794.9,1794.6,24.74836754]
[1680535129952,0.11000001,1794.9,1794.8,5.823]
[1680535130248,20.16464509,1795.0,1794.8,16.55691218]
[1680535130548,20.15564509,1795.0,1794.9,9.42471218]
[1680535130734,20.15564509,1795.0,1794.9,12.65871218]
[1680535131030,20.16464509,1795.0,1794.9,12.65671218]
[1680535134522,19.85408009,1795.0,1794.9,12.66271218]
[1680535135539,20.46994359,1795.0,1794.9,12.66271218]
[1680535136959,20.46994359,1795.0,1794.9,3.84369]
[1680535137161,20.46994359,1795.0,1794.9,3.83969]
[1680535137514,20.46994359,1795.0,1794.9,0.83569]
[1680535138520,20.47894359,1795.0,1794.9,0.83569]
[1680535142546,21.47894359,1795.0,1794.9,0.83569]
[1680535142840,23.53783795,1795.0,1794.9,0.83569]
[1680535143776,23.52883795,1795.0,1794.9,0.83569]
[1680535143955,0.09364508,1794.7,1794.6,0.008]
[1680535144156,0.09364508,1794.7,1794.6,4.95028]
[1680535144372,0.09364508,1794.7,1794.6,4.95628]
[1680535144684,0.69555863,1794.7,1794.6,4.95628]
[1680535146242,0.69555863,1794.7,1794.6,1.95628]
[1680535146447,0.69555863,1794.7,1794.6,1.95028]
[1680535147464,3.17855863,1794.7,1794.6,1.67167]
[1680535147665,3.17855863,1794.7,1794.6,1.95028]
[1680535149073,3.17855863,1794.7,1794.5,40.825]
[1680535149272,0.69555863,1794.7,1794.6,1.95028]
[1680535149577,3.18155863,1794.7,1794.6,1.95028]
[1680535150080,3.18155863,1794.7,1794.6,10.53930218]
[1680535150291,1.93855863,1794.7,1794.6,13.84384332]
[1680535150782,1.93855863,1794.7,1794.6,14.42637568]
[1680535150947,1.93855863,1794.7,1794.6,14.43237568]
[1680535151343,1.93855863,1794.7,1794.6,14.32837568]
[1680535151561,1.93855863,1794.7,1794.6,14.32637568]
[1680535151970,1.245,1794.9,1794.6,14.62424997]
[1680535152170,21.10608009,1795.0,1794.8,6.40515136]
[1680535152360,19.86308009,1795.0,1794.9,19.12598218]
[1680535152549,21.10608009,1795.0,1794.9,19.12798218]
[1680535152749,21.10608009,1795.0,1794.9,22.12798218]
[1680535153382,21.10608009,1795.0,1794.9,16.30498218]
[1680535153549,22.34608009,1795.0,1794.9,16.30498218]
[1680535153952,22.34608009,1795.0,1794.9,22.12798218]
[1680535154767,22.34608009,1795.0,1794.9,13.30896]
[1680535155151,22.34608009,1795.0,1794.9,1.95195]
[1680535155350,24.5916881,1795.0,1794.9,1.94995]
[1680535156350,0.09364508,1794.8,1794.7,0.002]
[1680535156551,2.57964508,1794.8,1794.7,0.83578]
[1680535156784,2.57964508,1794.8,1794.7,1.95015]
[1680535159674,3.62309992,1794.8,1794.7,1.95015]
[1680535160067,3.62609992,1794.8,1794.7,1.85015]
[1680535160260,3.62309992,1794.8,1794.7,1.95015]
[1680535169072,3.98650991,1794.8,1794.7,1.95015]
[1680535169891,3.99150991,1794.8,1794.7,1.95015]
[1680535170496,3.98250991,1794.8,1794.7,1.95015]
[1680535171498,3.59121435,1794.8,1794.7,1.95015]
[1680535172508,3.59121435,1794.8,1794.7,1.75015]
[1680535175332,3.22780436,1794.8,1794.7,1.75015]
[1680535175528,1.98480436,1794.8,1794.7,1.75015]
[1680535179891,0.74580436,1794.8,1794.7,2.33230136]
[1680535183203,0.74580436,1794.8,1794.7,2.33230136]
[1680535186653,0.74580436,1794.8,1794.7,11.79716709]
[1680535186829,0.74580436,1794.8,1794.7,11.44757883]
[1680535186998,0.74580436,1794.8,1794.7,11.44557883]
[1680535187798,0.74580436,1794.8,1794.7,12.02917373]
[1680535188015,0.74580436,1794.8,1794.7,11.44557883]
[1680535188222,0.74580436,1794.8,1794.7,11.44757883]
[1680535188623,0.74580436,1794.8,1794.7,11.44557883]
[1680535190944,0.74580436,1794.8,1794.7,11.45157883]
[1680535191413,0.65215928,1794.8,1794.7,11.45157883]
[1680535192543,0.09364508,1794.9,1794.7,11.45157883]
[1680535192708,0.09364508,1794.9,1794.8,4.20510395]
[1680535193553,0.61138256,1794.9,1794.8,4.20510395]
[1680535195954,0.61138256,1794.9,1794.8,4.20710395]
[1680535197046,0.61138256,1794.9,1794.8,4.21110395]
[1680535197243,0.60864616,1794.9,1794.8,4.21110395]
[1680535197417,0.60864616,1794.9,1794.8,4.20510395]
[1680535198925,0.51773748,1794.9,1794.8,4.20510395]
[1680535200361,0.51773748,1794.9,1794.8,7.26198883]
[1680535200664,0.51773748,1794.9,1794.8,7.26398883]
[1680535201766,0.11000001,1795.0,1794.8,7.26398883]
[1680535201966,0.11000001,1795.0,1794.9,0.58366066]
[1680535202262,0.11000001,1795.0,1794.9,2.53361066]
[1680535202465,0.11000001,1795.0,1794.9,5.53361066]
[1680535202637,0.11000001,1795.0,1794.9,5.82635665]
[1680535203760,0.62616064,1795.0,1794.9,5.82635665]
[1680535205167,0.62616064,1795.0,1794.9,8.59237883]
[1680535205547,0.11000001,1795.0,1794.9,9.17572269]
[1680535206429,0.11000001,1795.0,1794.9,8.30131604]
[1680535208746,0.70435067,1795.0,1794.9,8.30131604]
[1680535209761,0.11000001,1795.0,1794.9,8.30131604]
[1680535211051,0.11000001,1795.0,1794.9,2.53529386]
[1680535211249,0.11000001,1795.0,1794.9,1.94995]
[1680535211250,1.35300001,1795.0,1794.9,1.94995]
[1680535211789,1.92375452,1795.0,1794.9,1.94995]
[1680535211999,2.12522084,1795.0,1794.9,1.94995]
[1680535213903,0.88222084,1795.0,1794.9,1.94995]
[1680535216793,0.68075452,1795.0,1794.9,1.94995]
[1680535217722,0.67741983,1795.0,1794.9,1.94995]
[1680535219623,0.67741983,1795.0,1794.7,0.59134386]
[1680535219808,1.33290868,1794.8,1794.7,0.27858]
[1680535220139,1.46619955,1794.8,1794.7,0.83577]
[1680535220319,1.46619955,1794.8,1794.7,0.27858]
[1680535220693,2.01608267,1794.8,1794.7,0.27858]
[1680535221434,2.01608267,1794.8,1794.7,0.83577]
[1680535224315,5.78210485,1794.8,1794.7,0.83577]
[1680535224501,6.91390868,1794.6,1794.4,0.28664]
[1680535224704,0.09090868,1794.4,1794.3,0.55731]
[1680535225034,1.33290868,1794.4,1794.3,0.27866]
[1680535225551,0.09090868,1794.2,1794.1,0.83806]
[1680535225715,0.09090868,1794.2,1794.1,0.83606]
[1680535231550,0.09090868,1794.2,1794.1,0.8329914]
[1680535231709,0.61178733,1794.2,1794.1,0.8329914]
[1680535232348,0.79716606,1794.2,1794.1,0.8329914]
[1680535233188,0.61178733,1794.2,1794.1,1.9477514]
[1680535236467,1.84878733,1794.2,1794.1,0.2756214]
[1680535237018,1.84878733,1794.2,1794.1,0.8330014]
[1680535237379,1.84878733,1794.2,1794.1,0.2756214]
[1680535237530,2.03366606,1794.2,1794.1,0.2756214]
[1680535238185,2.03366606,1794.2,1794.0,0.55741]
[1680535238328,2.03366606,1794.2,1794.1,0.27869]
[1680535240185,0.79666606,1794.2,1794.1,0.83607]
[1680535240327,0.61178733,1794.2,1794.1,0.83607]
[1680535241047,6.43478733,1794.2,1794.1,0.83607]
[1680535241248,6.43678733,1794.2,1794.1,0.83607]
[1680535246354,0.61378733,1794.2,1794.1,0.83607]
[1680535246555,0.61178733,1794.2,1794.1,0.83607]
[1680535246873,0.84414177,1794.2,1794.1,0.83607]
[1680535248711,0.75323309,1794.2,1794.1,3.60209218]
[1680535248916,0.75323309,1794.2,1794.1,3.60809218]
[1680535249133,3.309e-05,1794.2,1794.1,12.42909218]
[1680535249264,3.309e-05,1794.2,1794.1,17.37109218]
[1680535249736,0.09090868,1794.7,1794.1,17.37109218]
[1680535250014,0.09090868,1794.7,1794.2,8.84177003]
[1680535250220,0.09090868,1794.7,1794.3,16.13313]
[1680535250514,0.09090868,1794.7,1794.3,29.25935218]
[1680535250813,0.66179294,1794.6,1794.3,29.25935218]
[1680535251011,0.66179294,1794.6,1794.4,0.02274532]
[1680535251209,0.66179294,1794.6,1794.5,1.95038]
[1680535252202,0.66179294,1794.6,1794.5,10.53940218]
[1680535252422,0.66179294,1794.6,1794.5,13.77140218]
[1680535252605,0.09090868,1794.9,1794.5,13.77140218]
[1680535252774,0.09090868,1794.9,1794.6,0.02274277]
[1680535253123,0.09090868,1794.9,1794.7,4.73615]
[1680535253307,0.09090868,1794.9,1794.7,14.86695]
[1680535253489,0.09090868,1794.9,1794.7,14.86895]
[1680535253825,0.65986383,1794.8,1794.7,14.86895]
[1680535254608,0.09090868,1794.9,1794.7,14.86895]
[1680535257600,0.65986383,1794.8,1794.7,14.86895]
[1680535257918,0.65986383,1794.8,1794.7,17.86895]
[1680535258638,0.09090868,1794.9,1794.7,17.86895]
[1680535259278,0.09090868,1794.9,1794.7,17.89169151]
[1680535259479,0.09090868,1794.9,1794.7,22.72919151]
[1680535259778,0.65977632,1794.8,1794.7,22.72919151]
[1680535260113,0.65977632,1794.8,1794.7,17.89169151]
[1680535260685,0.09090868,1794.9,1794.7,17.89169151]
[1680535261236,0.09090868,1794.9,1794.7,27.71971369]
[1680535261382,0.10666532,1795.0,1794.7,27.71971369]
[1680535261884,0.65977632,1794.8,1794.7,27.71971369]
[1680535262435,0.65977632,1794.8,1794.7,27.94971369]
[1680535262927,0.10666532,1795.0,1794.7,27.94971369]
[1680535263232,0.10666532,1795.0,1794.8,11.81902218]
[1680535263431,0.10666532,1795.0,1794.9,1.94995]
[1680535267617,0.197574,1795.0,1794.9,1.94995]
[1680535272036,0.19532149,1795.0,1794.9,1.94995]
[1680535274126,0.19532149,1795.0,1794.9,4.71597218]
[1680535274346,0.10441281,1795.0,1794.9,1.94995]
[1680535276045,0.10441281,1795.0,1794.9,6.83225]
[1680535276213,0.10441281,1795.0,1794.9,6.83425]
[1680535280838,0.10441281,1795.0,1794.9,9.83425]
[1680535281193,0.10441281,1795.0,1794.9,6.83425]
[1680535283289,0.19532149,1795.0,1794.9,6.83425]
[1680535283501,0.10441281,1795.0,1794.9,6.83425]
[1680535284046,0.10441281,1795.0,1794.9,9.83425]
[1680535288158,0.10441281,1795.0,1794.9,6.83425]
[1680535292313,0.10441281,1795.0,1794.9,1.95195]
[1680535292481,0.10441281,1795.0,1794.9,1.94995]
[1680535294919,1.02073555,1795.0,1794.9,1.94995]
[1680535296195,1.02073555,1795.0,1794.9,2.53329386]
[1680535297202,1.02073555,1795.0,1794.9,3.40770051]
[1680535297913,1.02073555,1795.0,1794.9,2.53329386]
[1680535298825,1.02073555,1795.0,1794.9,3.40770051]
[1680535299014,1.02073555,1795.0,1794.9,2.82435665]
[1680535299635,1.02073555,1795.0,1794.9,2.53399025]
[1680535299842,1.02073555,1795.0,1794.9,2.82435665]
[1680535303751,1.02073555,1795.0,1794.9,3.11790192]
[1680535303952,1.02073555,1795.0,1794.9,3.99421754]
[1680535304530,1.02073555,1795.0,1794.9,3.994221]
[1680535305081,1.02073555,1795.0,1794.9,3.11790192]
[1680535305978,1.02073555,1795.0,1794.9,3.9942981]
[1680535306331,1.02073555,1795.0,1794.9,3.11790192]
[1680535306955,1.02073555,1795.0,1794.9,3.99436708]
[1680535307161,1.02073555,1795.0,1794.9,3.99436313]
[1680535307436,1.02073555,1795.0,1794.9,2.82641253]
[1680535308340,1.02073555,1795.0,1794.9,3.99436445]
[1680535308558,1.02073555,1795.0,1794.9,2.82641253]
[1680535309281,1.02073555,1795.0,1794.9,2.53429776]
[1680535310048,1.13189997,1795.0,1794.9,1.94995]
[1680535310678,1.13189997,1795.0,1794.9,2.53429776]
[1680535310889,1.13189997,1795.0,1794.9,1.94995]
[1680535312203,1.02073555,1795.0,1794.9,1.94995]
[1680535313575,1.02073555,1795.0,1794.9,2.53429776]
[1680535313785,1.02073555,1795.0,1794.9,1.94995]
[1680535323385,1.01813935,1795.0,1794.9,11.7069241]
[1680535323600,1.01813935,1795.0,1794.9,11.9389241]
[1680535324165,1.01813935,1795.0,1794.9,14.9389241]
[1680535324439,1.01813935,1795.0,1794.9,14.9449241]
[1680535324802,1.01813935,1795.0,1794.9,16.40486203]
[1680535325004,1.01813935,1795.0,1794.9,16.40424171]
[1680535325216,1.01813935,1795.0,1794.9,16.4269867]
[1680535325416,1.01813935,1795.0,1794.9,15.25964909]
[1680535325634,0.09836849,1795.0,1794.9,15.25964909]
[1680535325813,0.09836849,1795.0,1794.9,30.43984909]
[1680535326617,0.09836849,1795.0,1794.9,31.60718315]
[1680535327031,0.09836849,1795.0,1794.9,30.43984909]
[1680535327290,0.09836849,1795.0,1794.9,31.60694643]
[1680535327427,0.09836849,1795.0,1794.9,30.43984909]
[1680535327630,0.09836849,1795.0,1794.9,31.60696177]
[1680535329011,0.09836849,1795.0,1794.9,30.14702384]
[1680535331449,0.09836849,1795.0,1794.9,66.60696177]
[1680535331648,0.09836849,1795.0,1794.9,65.14702384]
[1680535335838,0.09836849,1795.0,1794.9,66.05611516]
[1680535336040,0.09836849,1795.0,1794.9,65.14702384]
[1680535337923,0.00036849,1795.0,1794.9,66.66684909]
[1680535338245,0.00036849,1795.0,1794.9,67.57370698]
[1680535339454,0.00036849,1795.0,1794.9,66.11600248]
[1680535339772,0.00036849,1795.0,1794.9,67.57336043]
[1680535341761,0.00036849,1795.0,1794.9,66.66426911]
[1680535345540,0.00036849,1795.0,1794.9,67.57336043]
[1680535345845,0.00036849,1795.0,1794.9,65.20691116]
[1680535346066,0.00036849,1795.0,1794.9,67.57255489]
[1680535347469,0.11000001,1795.5,1795.2,6.73209132]
[1680535347789,0.11000001,1795.7,1795.4,11.28719868]
[1680535347988,0.11000001,1795.7,1795.6,7.059]
[1680535348148,0.11000001,1795.7,1795.6,17.25888902]
[1680535348350,0.11000001,1795.8,1795.6,17.25888902]
[1680535348573,0.11000001,1795.8,1795.7,13.05002218]
[1680535348769,0.11000001,1795.8,1795.7,20.56996218]
[1680535350776,1.5604523,1795.9,1795.7,20.56996218]
[1680535351173,1.5604523,1795.9,1795.7,20.59269103]
[1680535352087,1.5604523,1795.9,1795.7,21.14557178]
[1680535352792,1.5604523,1795.9,1795.7,21.15157178]
[1680535353566,1.5604523,1795.9,1795.7,19.92057178]
[1680535354183,1.4604523,1795.9,1795.7,19.91457178]
[1680535356553,0.20090869,1796.0,1795.9,5.823]
[1680535356753,0.09090868,1796.2,1796.0,4.73272]
[1680535356988,0.09090868,1796.2,1796.1,15.22177218]
[1680535357170,0.09090868,1796.2,1796.1,15.22377218]
[1680535357389,0.09090868,1796.3,1796.1,15.22377218]
[1680535358922,0.80427429,1796.2,1796.1,15.22377218]
[1680535359583,1.5971789,1796.4,1796.1,15.22377218]
[1680535359911,1.68808758,1796.4,1796.1,15.22377218]
[1680535360113,1.68808758,1796.4,1796.3,5.823]
[1680535360320,1.68808758,1796.4,1796.3,13.55293218]
[1680535360676,2.49271762,1796.4,1796.3,13.55293218]
[1680535361198,2.49271762,1796.4,1796.3,16.55293218]
[1680535361775,1.68808758,1796.4,1796.3,16.55293218]
[1680535362890,1.68808758,1796.4,1796.3,10.72993218]
[1680535363098,1.68808758,1796.4,1796.3,10.49993218]
[1680535363305,1.85689634,1796.4,1796.3,4.73391]
[1680535363506,1.85689634,1796.4,1796.3,4.73191]
[1680535364709,2.67040162,1796.4,1796.3,4.73191]
[1680535369296,2.50159286,1796.4,1796.3,4.73191]
[1680535371205,2.49259286,1796.4,1796.3,4.73191]
[1680535371922,2.49259286,1796.4,1796.3,7.49793218]
[1680535372092,2.49259286,1796.4,1796.3,7.49993218]
[1680535372526,2.44259286,1796.4,1796.3,7.49993218]
[1680535373400,2.44259286,1796.4,1796.3,7.50193218]
[1680535374251,2.44259286,1796.4,1796.3,7.50593218]
[1680535374389,2.44259286,1796.4,1796.3,10.50593218]
[1680535378528,2.44259286,1796.4,1796.3,4.73991]
[1680535378729,2.44259286,1796.4,1796.3,4.73391]
[1680535378915,2.68685215,1796.4,1796.3,1.95442]
[1680535379108,2.68685215,1796.4,1796.3,1.94842]
[1680535379302,2.44259286,1796.4,1796.3,1.94842]
[1680535382948,2.45159286,1796.4,1796.3,1.94842]
[1680535383102,2.44259286,1796.4,1796.3,1.94842]
[1680535383668,2.44259286,1796.4,1796.3,1.97114125]
[1680535383826,0.002,1796.6,1796.3,2.59474839]
[1680535384038,15.86099287,1797.0,1796.3,2.58874839]
[1680535384353,0.1345,1796.8,1796.3,2.59474839]
[1680535384708,0.95147683,1796.8,1796.3,2.59474839]
[1680535385152,0.81697683,1796.8,1796.3,5.36077057]
[1680535385330,0.81697683,1796.8,1796.3,5.36277057]
[1680535386917,0.81697683,1796.8,1796.5,0.83494]
[1680535387252,0.81697683,1796.8,1796.5,1.9482]
[1680535387433,0.81697683,1796.8,1796.5,10.54322218]
[1680535387635,0.11000001,1796.9,1796.5,10.54522218]
[1680535388219,0.11000001,1796.9,1796.7,5.823]
[1680535388421,0.11000001,1796.9,1796.8,4.73061]
[1680535388737,0.11000001,1796.9,1796.8,4.73661]
[1680535389622,0.11000001,1796.9,1796.8,13.55563218]
[1680535389820,0.11000001,1796.9,1796.8,13.55763218]
[1680535390658,1e-08,1796.9,1796.8,27.06073218]
[1680535390980,0.11000001,1797.3,1797.1,5.823]
[1680535391268,0.11000001,1797.3,1797.2,1.94747]
[1680535391890,0.11000001,1797.3,1797.1,0.55844]
[1680535392022,1.236,1797.2,1797.1,0.55644]
[1680535392459,1.236,1797.2,1797.1,0.83466]
[1680535392668,1.236,1797.2,1797.1,0.27822]
[1680535392872,0.1355,1797.2,1797.1,0.83467]
[1680535393457,1.34600001,1797.3,1797.1,0.83467]
[1680535393458,0.11000001,1797.3,1797.1,0.83467]
[1680535395168,0.11000001,1797.3,1797.1,3.60069218]
[1680535395889,0.11000001,1797.3,1797.2,2.76602218]
[1680535396045,0.11000001,1797.3,1797.2,7.72559218]
[1680535396226,0.11000001,1797.3,1797.2,13.55259218]
[1680535396438,0.11000001,1797.3,1797.2,7.72959218]
[1680535396641,0.95105494,1797.3,1797.2,4.73757]
[1680535396873,0.95105494,1797.3,1797.2,4.73557]
[1680535397228,0.95105494,1797.3,1797.2,7.50159218]
[1680535397467,0.95105494,1797.3,1797.2,7.73359218]
[1680535397723,0.95105494,1797.3,1797.2,10.73359218]
[1680535397923,0.95105494,1797.3,1797.2,11.96459218]
[1680535398326,0.85059595,1797.3,1797.2,17.80830206]
[1680535398535,0.85059595,1797.3,1797.2,17.80430206]
[1680535398765,0.00954102,1797.3,1797.2,17.80430206]
[1680535399480,0.11000001,1797.5,1797.2,17.80430206]
[1680535399707,0.11000001,1797.5,1797.4,6.44060714]
[1680535399973,0.11000001,1797.5,1797.4,14.38585932]
[1680535400727,0.11000001,1797.5,1797.4,8.56285932]
[1680535401760,0.11000001,1797.5,1797.4,8.58556666]
[1680535404143,0.11000001,1797.5,1797.4,14.40856666]
[1680535407684,0.06000001,1797.5,1797.4,14.40856666]
[1680535410686,0.06000001,1797.5,1797.4,15.64156666]
[1680535410687,0.89799785,1797.5,1797.4,15.64156666]
[1680535411692,0.06000001,1797.5,1797.4,15.64156666]
[1680535413956,0.11000001,1797.9,1797.8,0.61760714]
[1680535414164,0.11000001,1797.9,1797.8,13.67395932]
[1680535414384,0.11000001,1797.9,1797.8,16.67595932]
[1680535415303,0.11000001,1797.9,1797.8,22.49895932]
[1680535415446,0.11000001,1797.9,1797.8,23.96495932]
[1680535415653,0.11000001,1797.9,1797.8,18.14195932]
[1680535416395,0.11000001,1797.9,1797.8,17.91195932]
[1680535418609,0.91172862,1797.9,1797.8,17.91195932]
[1680535419451,0.91172862,1797.9,1797.8,16.67595932]
[1680535420208,0.91172862,1797.9,1797.8,4.72998]
[1680535420354,0.91172862,1797.9,1797.8,4.72798]
[1680535421152,0.76172862,1797.9,1797.8,4.72798]
[1680535421667,0.31943578,1798.2,1797.8,4.72798]
[1680535422410,0.31943578,1798.2,1797.8,7.49400218]
[1680535422603,0.31943578,1798.2,1798.1,0.61760714]
[1680535422766,0.31943578,1798.2,1798.1,5.34480714]
[1680535422970,0.31943578,1798.2,1798.1,1.94849]
[1680535423186,0.31943578,1798.2,1798.1,1.94649]
[1680535423391,0.31943578,1798.2,1798.1,2.56409714]
[1680535424090,0.31943578,1798.2,1798.1,1.94649]
[1680535427783,0.31943578,1798.2,1798.1,4.71251218]
[1680535428180,0.31943578,1798.2,1798.1,7.71251218]
[1680535428469,0.31943578,1798.2,1798.1,7.71451218]
[1680535428879,0.31943578,1798.2,1798.1,13.53751218]
[1680535429082,0.31943578,1798.2,1798.1,13.76751218]
[1680535429900,0.31943578,1798.2,1798.1,4.94849]
[1680535430071,0.31943578,1798.2,1798.1,1.94649]
[1680535430672,1.06272881,1798.2,1798.1,1.94649]
[1680535432000,1.06272881,1798.2,1798.1,10.53551218]
[1680535432175,1.06272881,1798.2,1798.1,10.76751218]
[1680535432611,1.06272881,1798.2,1798.1,13.76751218]
[1680535433128,1.06272881,1798.2,1798.1,15.00051218]
[1680535433344,1.06272881,1798.2,1798.1,13.76751218]
[1680535433621,1.06272881,1798.2,1798.1,7.94451218]
[1680535433846,0.31943578,1798.2,1798.1,4.94849]
[1680535434012,0.31943578,1798.2,1798.1,4.94649]
[1680535434733,1.05829056,1798.2,1798.1,4.94649]
[1680535435993,1.05829056,1798.2,1798.1,1.94649]
[1680535439418,1.19606319,1798.2,1798.1,1.94649]
[1680535443233,1.05829056,1798.2,1798.1,1.94649]
[1680535445497,1.05573719,1798.2,1798.1,1.94649]
[1680535445702,1.05573719,1798.2,1798.1,2.56409714]
[1680535446858,1.05573719,1798.2,1798.1,1.94649]
[1680535447134,1.05573719,1798.2,1798.1,2.56409714]
[1680535447447,1.05573719,1798.2,1798.1,1.94649]
[1680535450488,1.05573719,1798.2,1798.1,0.83421]
[1680535450705,8.11673719,1798.2,1798.1,0.27807]
[1680535451012,8.11873719,1798.2,1798.1,0.27807]
[1680535451175,2.29573719,1798.2,1798.1,0.83421]
[1680535451376,3.13845449,1798.2,1798.1,0.83421]
[1680535452192,1.90945449,1798.2,1798.1,0.83421]
[1680535452506,1.05573719,1798.2,1798.1,1.45181714]
[1680535452813,1.05573719,1798.2,1798.1,0.83421]
[1680535455825,1.05573719,1798.2,1798.1,4.41215902]
[1680535456375,1.05573719,1798.2,1798.1,0.83421]
[1680535456594,0.31688241,1798.2,1798.1,0.83421]
[1680535456807,0.31688241,1798.2,1798.1,1.41613684]
[1680535457073,0.31688241,1798.2,1798.1,0.83421]
[1680535457741,2.33389945,1798.2,1798.1,0.83421]
[1680535457878,2.59923297,1798.2,1798.1,0.83421]
[1680535458498,1.36323297,1798.2,1798.1,0.83421]
[1680535458705,1.36323297,1798.2,1798.1,3.60023218]
[1680535458706,1.09789945,1798.2,1798.1,3.60023218]
[1680535459028,1.09789945,1798.2,1798.1,13.91372958]
[1680535459221,1.09789945,1798.2,1798.1,14.14572958]
[1680535459834,0.31688241,1798.2,1798.1,5.90733299]
[1680535459993,0.31688241,1798.2,1798.1,5.03444273]
[1680535460191,0.31688241,1798.2,1798.1,5.04044273]
[1680535461591,1.09792156,1798.2,1798.1,5.91333299]
[1680535461795,1.09792156,1798.2,1798.1,5.04044273]
[1680535463755,1.09792156,1798.2,1798.1,14.73235517]
[1680535463935,1.09792156,1798.2,1798.1,8.90935517]
[1680535464139,1.09792156,1798.2,1798.1,7.80646491]
[1680535464304,1.09792156,1798.2,1798.1,8.67935517]
[1680535464803,0.31688241,1798.2,1798.1,8.67935517]
[1680535465639,0.31375792,1798.2,1798.1,13.91572958]
[1680535465819,0.31375792,1798.2,1798.1,14.14572958]
[1680535466000,0.31375792,1798.2,1798.1,15.30958327]
[1680535466568,0.31375792,1798.2,1798.1,14.43669301]
[1680535466769,7.92e-06,1798.2,1798.1,14.43669301]
[1680535466923,7.92e-06,1798.2,1798.1,15.30952857]
[1680535467127,7.92e-06,1798.2,1798.1,6.49050639]
[1680535467441,7.92e-06,1798.2,1798.1,15.44769301]
[1680535467978,7.92e-06,1798.2,1798.1,9.2566286]
[1680535468123,7.92e-06,1798.2,1798.1,5.32675273]
[1680535469033,7.92e-06,1798.2,1798.1,13.91577491]
[1680535469237,7.92e-06,1798.2,1798.1,15.14877491]
[1680535469968,7.92e-06,1798.2,1798.1,16.5426286]
[1680535470330,7.92e-06,1798.2,1798.1,15.37877491]
[1680535470525,7.92e-06,1798.2,1798.1,15.66969301]
[1680535470762,7.92e-06,1798.2,1798.1,16.54224056]
[1680535471327,7.92e-06,1798.2,1798.1,15.37838687]
[1680535472169,7.92e-06,1798.2,1798.1,8.32238687]
[1680535472490,7.92e-06,1798.2,1798.1,8.09238687]
[1680535474166,7.92e-06,1798.2,1798.1,8.67441222]
[1680535474563,7.92e-06,1798.2,1798.1,8.09238687]
[1680535475084,7.92e-06,1798.2,1798.1,8.67440616]
[1680535475736,7.92e-06,1798.2,1798.1,2.03583643]
[1680535475936,7.92e-06,1798.2,1798.1,2.03383643]
[1680535476892,0.7143166,1798.2,1798.1,2.03383643]
[1680535477277,7.88269184,1798.2,1798.1,0.27807]
[1680535477478,7.89369184,1798.2,1797.7,0.58401929]
[1680535477681,8.58902218,1798.1,1797.7,0.58201929]
[1680535477968,5.823,1797.9,1797.8,0.83434]
[1680535478105,5.834,1797.9,1797.8,0.83434]
[1680535482059,5.834,1797.9,1797.8,0.27811]
[1680535482221,6.541,1797.9,1797.6,1.66888]
[1680535482435,6.541,1797.9,1797.6,0.83442]
[1680535482760,6.541,1797.9,1797.6,0.27813]
[1680535483259,9.30702218,1797.9,1797.6,0.27813]
[1680535483456,5.823,1797.7,1797.6,0.27814]
[1680535483760,5.834,1797.7,1797.6,0.27814]
[1680535485402,5.834,1797.7,1797.6,0.83443]
[1680535486815,6.51526936,1797.7,1797.6,0.83443]
[1680535487014,7.38306652,1797.7,1797.6,0.83443]
[1680535488817,7.37158146,1797.7,1797.6,0.83443]
[1680535490865,8.60658146,1797.7,1797.6,0.83443]
[1680535494271,7.37158146,1797.7,1797.6,0.83443]
[1680535498045,0.68326936,1797.7,1797.6,1.45203714]
[1680535498351,0.68126936,1797.7,1797.6,1.45203714]
[1680535498871,25.499535,1798.0,1797.6,1.45203714]
[1680535499238,31.322535,1798.0,1797.6,1.45203714]
[1680535499438,34.4556885,1798.0,1797.6,0.83443]
[1680535499651,29.8425885,1798.0,1797.8,1.94681]
[1680535499853,24.0195885,1798.0,1797.8,1.94681]
[1680535500194,29.8425885,1798.0,1797.8,1.94681]
[1680535501426,28.6065885,1798.0,1797.8,1.94681]
[1680535501637,19.650435,1798.0,1797.8,1.94681]
[1680535501858,0.71597002,1797.9,1797.8,1.94681]
[1680535505269,0.71597002,1797.9,1797.8,1.94881]
[1680535505744,0.71597002,1797.9,1797.8,1.95281]
[1680535508786,0.71597002,1797.9,1797.8,1.94881]
[1680535511360,0.71597002,1797.9,1797.8,1.95081]
[1680535511970,0.71597002,1797.9,1797.8,0.83434]
[1680535512183,2.75261052,1797.9,1797.8,0.27811]
[1680535512481,8.57561052,1797.9,1797.7,0.28412]
[1680535512658,11.3436327,1797.9,1797.7,0.28412]
[1680535512853,11.3436327,1797.9,1797.7,0.83438]
[1680535513056,11.3436327,1797.9,1797.7,0.27812]
[1680535513247,6.95736327,1797.8,1797.7,0.27812]
[1680535513451,6.95936327,1797.8,1797.7,0.27812]
[1680535514080,6.95936327,1797.8,1797.5,1.73621714]
[1680535514258,6.95936327,1797.8,1797.6,0.27813]
[1680535514787,6.95936327,1797.8,1797.5,0.83447]
[1680535515085,6.51893633,1797.7,1797.5,0.83447]
[1680535515246,6.52093633,1797.7,1797.4,0.006]
[1680535515444,6.52093633,1797.7,1797.4,0.27816]
[1680535515873,5.823,1797.5,1797.4,0.27817]
[1680535516045,5.825,1797.5,1797.4,0.27817]
[1680535516446,5.825,1797.5,1797.4,0.83452]
[1680535516662,6.73207935,1797.5,1797.4,0.83452]
[1680535520683,9.49810153,1797.5,1797.3,0.006]
[1680535520885,6.77281015,1797.4,1797.3,0.27817]
[1680535521179,6.77481015,1797.4,1797.3,0.27817]
[1680535521758,6.77481015,1797.4,1797.3,0.83456]
[1680535522958,6.77481015,1797.4,1797.3,0.83656]
[1680535523185,6.77481015,1797.4,1797.3,0.83456]
[1680535526403,7.7669,1797.1,1797.0,0.93469]
[1680535530302,0.002,1797.1,1797.0,0.93469]
[1680535530531,4.6673,1797.4,1797.3,0.61760714]
[1680535530703,7.42232218,1797.4,1797.3,2.56496714]
[1680535530893,2.77702218,1797.4,1797.3,2.56496714]
[1680535531075,0.009,1797.4,1797.3,2.56496714]
[1680535531271,7.97507935,1797.5,1797.3,2.56496714]
[1680535531603,12.04934613,1797.5,1797.3,2.56496714]
[1680535531779,0.86377648,1797.4,1797.3,2.56496714]
[1680535532702,0.86377648,1797.4,1797.3,2.58767576]
[1680535533799,1.247,1797.8,1797.3,2.58767576]
[1680535534004,2.89072218,1797.7,1797.3,1.97006862]
[1680535534330,4.247,1797.8,1797.6,0.61760714]
[1680535534525,10.059,1797.8,1797.7,1.94692]